lending/lending_fUSD_20250114
["ID","MTS","AMOUNT","RATE_DAILY","PERIOD"]
[348922938,1736873462241,-500.0,0.00012,2]
[348922939,1736873462250,-500.0,0.00012,2]
[348922940,1736873462260,-500.0,0.00012,2]
[348922941,1736873462269,-500.0,0.00012,2]
[348922942,1736873462278,-500.0,0.00012,2]
[348922943,1736873462287,-500.0,0.00012,2]
[348922944,1736873462297,-500.0,0.00012,2]
[348922945,1736873462308,-500.0,0.00012,2]
[348922946,1736873462318,-500.0,0.00012,2]
[348922947,1736873462327,-500.0,0.00012,2]
[348922948,1736873462337,-500.0,0.00012,2]
[348922949,1736873462348,-500.0,0.00012,2]
[348922950,1736873462358,-500.0,0.00012,2]
[348922951,1736873462367,-500.0,0.00012,2]
[348922952,1736873462377,-500.0,0.00012,2]
[348922953,1736873462387,-500.0,0.00012,2]
[348922954,1736873462396,-500.0,0.00012,2]
[348922955,1736873462406,-500.0,0.00012,2]
[348922956,1736873462416,-500.0,0.00012,2]
[348922957,1736873462426,-500.0,0.00012,2]
[348922958,1736873462436,-500.0,0.00012,2]
[348922959,1736873462446,-500.0,0.00012,2]
[348922960,1736873462456,-500.0,0.00012,2]
[348922961,1736873462466,-500.0,0.00012,2]
[348922962,1736873462476,-500.0,0.00012,2]
[348922963,1736873462485,-500.0,0.00012,2]
[348922964,1736873462495,-500.0,0.00012,2]
[348922965,1736873462506,-500.0,0.00012,2]
[348922966,1736873462516,-500.0,0.00012,2]
[348922967,1736873462525,-500.0,0.00012,2]
[348922968,1736873462535,-500.0,0.00012,2]
[348922969,1736873462545,-500.0,0.00012,2]
[348922970,1736873462555,-500.0,0.00012,2]
[348922971,1736873462565,-500.0,0.00012,2]
[348922972,1736873462575,-500.0,0.00012,2]
[348922973,1736873462585,-500.0,0.00012,2]
[348922974,1736873462594,-500.0,0.00012,2]
[348922975,1736873462604,-500.0,0.00012,2]
[348922976,1736873462614,-500.0,0.00012,2]
[348922977,1736873462623,-500.0,0.00012,2]
[348922978,1736873462633,-500.0,0.00012,2]
[348922979,1736873462642,-500.0,0.00012,2]
[348922980,1736873462651,-500.0,0.00012,2]
[348922981,1736873462661,-500.0,0.00012,2]
[348922982,1736873462670,-500.0,0.00012,2]
[348922983,1736873462680,-500.0,0.00012,2]
[348922984,1736873462690,-500.0,0.00012,2]
[348922985,1736873462703,-500.0,0.00012,2]
[348922986,1736873462712,-500.0,0.00012,2]
[348922987,1736873462723,-500.0,0.00012,2]
[348922988,1736873462734,-500.0,0.00012,2]
[348922989,1736873462745,-500.0,0.00012,2]
[348922990,1736873462755,-500.0,0.00012,2]
[348922991,1736873462765,-500.0,0.00012,2]
[348922992,1736873462774,-500.0,0.00012,2]
[348922993,1736873462785,-500.0,0.00012,2]
[348922994,1736873462795,-500.0,0.00012,2]
[348922995,1736873462804,-500.0,0.00012,2]
[348922996,1736873462814,-500.0,0.00012,2]
[348922997,1736873462823,-500.0,0.00012,2]
[348922998,1736873462833,-500.0,0.00012,2]
[348922999,1736873462843,-500.0,0.00012,2]
[348923000,1736873462852,-500.0,0.00012,2]
[348923001,1736873462862,-500.0,0.00012,2]
[348923002,1736873462872,-500.0,0.00012,2]
[348923003,1736873462884,-500.0,0.00012,2]
[348923004,1736873462894,-500.0,0.00012,2]
[348923005,1736873462904,-500.0,0.00012,2]
[348923006,1736873462914,-500.0,0.00012,2]
[348923007,1736873462924,-500.0,0.00012,2]
[348923008,1736873462933,-500.0,0.00012,2]
[348923009,1736873462943,-500.0,0.00012,2]
[348923010,1736873462953,-500.0,0.00012,2]
[348923011,1736873462963,-500.0,0.00012,2]
[348923012,1736873462972,-500.0,0.00012,2]
[348923013,1736873462982,-500.0,0.00012,2]
[348923014,1736873462992,-500.0,0.00012,2]
[348923015,1736873463002,-500.0,0.00012,2]
[348923016,1736873463012,-500.0,0.00012,2]
[348923017,1736873463025,-500.0,0.00012,2]
[348923018,1736873463035,-500.0,0.00012,2]
[348923019,1736873463045,-500.0,0.00012,2]
[348923020,1736873463055,-711.0,0.00012,2]
[348923021,1736873463066,-500.0,0.00012,2]
[348923022,1736873463077,-500.0,0.00012,2]
[348923023,1736873463087,-500.0,0.00012,2]
[348923024,1736873463098,-500.0,0.00012,2]
[348923025,1736873463107,-500.0,0.00012,2]
[348923026,1736873463118,-500.0,0.00012,2]
[348923027,1736873463127,-500.0,0.00012,2]
[348923028,1736873463137,-500.0,0.00012,2]
[348923029,1736873463147,-500.0,0.00012,2]
[348923030,1736873463337,-500.0,0.00012,2]
[348923031,1736873463348,-500.0,0.00012,2]
[348923032,1736873463358,-500.0,0.00012,2]
[348923033,1736873463368,-500.0,0.00012,2]
[348923034,1736873463383,-500.0,0.00012,2]
[348923035,1736873463393,-500.0,0.00012,2]
[348923036,1736873463404,-500.0,0.00012,2]
[348923037,1736873463414,-500.0,0.00012,2]
[348923038,1736873463424,-500.0,0.00012,2]
[348923039,1736873463433,-500.0,0.00012,2]
[348923040,1736873463443,-500.0,0.00012,2]
[348923041,1736873463456,-500.0,0.00012,2]
[348923042,1736873463467,-500.0,0.00012,2]
[348923043,1736873463477,-500.0,0.00012,2]
[348923044,1736873463488,-500.0,0.00012,2]
[348923045,1736873463498,-500.0,0.00012,2]
[348923046,1736873463508,-500.0,0.00012,2]
[348923047,1736873463519,-500.0,0.00012,2]
[348923048,1736873463529,-500.0,0.00012,2]
[348923049,1736873463539,-500.0,0.00012,2]
[348923050,1736873463549,-500.0,0.00012,2]
[348923051,1736873463559,-500.0,0.00012,2]
[348923052,1736873463569,-500.0,0.00012,2]
[348923053,1736873463580,-500.0,0.00012,2]
[348923054,1736873463590,-500.0,0.00012,2]
[348923055,1736873463601,-500.0,0.00012,2]
[348923056,1736873463611,-500.0,0.00012,2]
[348923057,1736873463621,-500.0,0.00012,2]
[348923058,1736873463633,-500.0,0.00012,2]
[348923059,1736873463643,-500.0,0.00012,2]
[348923060,1736873463653,-500.0,0.00012,2]
[348923061,1736873463663,-500.0,0.00012,2]
[348923062,1736873463672,-500.0,0.00012,2]
[348923063,1736873463683,-500.0,0.00012,2]
[348923064,1736873463693,-500.0,0.00012,2]
[348923065,1736873463706,-500.0,0.00012,2]
[348923066,1736873463716,-500.0,0.00012,2]
[348923067,1736873463726,-500.0,0.00012,2]
[348923068,1736873463736,-500.0,0.00012,2]
[348923069,1736873463747,-500.0,0.00012,2]
[348923070,1736873463757,-500.0,0.00012,2]
[348923071,1736873463767,-500.0,0.00012,2]
[348923072,1736873463777,-500.0,0.00012,2]
[348923073,1736873463787,-500.0,0.00012,2]
[348923074,1736873463796,-500.0,0.00012,2]
[348923075,1736873463806,-500.0,0.00012,2]
[348923076,1736873463816,-500.0,0.00012,2]
[348923077,1736873463826,-500.0,0.00012,2]
[348923078,1736873463835,-500.0,0.00012,2]
[348923079,1736873463845,-500.0,0.00012,2]
[348923080,1736873463855,-500.0,0.00012,2]
[348923081,1736873463865,-500.0,0.00012,2]
[348923082,1736873463874,-500.0,0.00012,2]
[348923083,1736873463885,-500.0,0.00012,2]
[348923084,1736873463895,-500.0,0.00012,2]
[348923085,1736873463904,-500.0,0.00012,2]
[348923086,1736873463914,-500.0,0.00012,2]
[348923087,1736873463924,-500.0,0.00012,2]
[348923088,1736873463934,-500.0,0.00012,2]
[348923089,1736873463944,-500.0,0.00012,2]
[348923090,1736873463953,-500.0,0.00012,2]
[348923091,1736873463962,-500.0,0.00012,2]
[348923092,1736873463972,-500.0,0.00012,2]
[348923093,1736873463982,-500.0,0.00012,2]
[348923094,1736873463992,-500.0,0.00012,2]
[348923095,1736873464002,-500.0,0.00012,2]
[348923096,1736873464013,-500.0,0.00012,2]
[348923097,1736873464025,-500.0,0.00012,2]
[348923098,1736873464036,-500.0,0.00012,2]
[348923099,1736873464046,-500.0,0.00012,2]
[348923100,1736873464057,-500.0,0.00012,2]
[348923101,1736873464068,-500.0,0.00012,2]
[348923102,1736873464078,-500.0,0.00012,2]
[348923103,1736873464089,-500.0,0.00012,2]
[348923104,1736873464100,-500.0,0.00012,2]
[348923105,1736873464112,-500.0,0.00012,2]
[348923106,1736873464122,-500.0,0.00012,2]
[348923107,1736873464136,-500.0,0.00012,2]
[348923108,1736873464146,-500.0,0.00012,2]
[348923109,1736873464157,-500.0,0.00012,2]
[348923110,1736873464166,-500.0,0.00012,2]
[348923111,1736873464176,-500.0,0.00012,2]
[348923112,1736873464186,-500.0,0.00012,2]
[348923113,1736873464196,-500.0,0.00012,2]
[348923114,1736873464206,-500.0,0.00012,2]
[348923115,1736873464216,-500.0,0.00012,2]
[348923116,1736873464225,-500.0,0.00012,2]
[348923117,1736873464235,-500.0,0.00012,2]
[348923118,1736873464245,-500.0,0.00012,2]
[348923119,1736873464255,-500.0,0.00012,2]
[348923120,1736873464266,-500.0,0.00012,2]
[348923121,1736873464277,-200.0,0.00012055,2]
[348923122,1736873464287,-1069.16,0.00012081,2]
[348923123,1736873464299,-500.0,0.00012081,2]
[348923124,1736873464310,-679.33,0.00012081,2]
[348923125,1736873464321,-500.0,0.00012081,2]
[348923126,1736873464332,-597.12,0.00012081,2]
[348923127,1736873464342,-926.54,0.00012081,2]
[348923128,1736873464352,-500.0,0.00012081,2]
[348923129,1736873464363,-970.9,0.00012081,2]
[348923130,1736873464372,-717.4,0.00012081,2]
[348923131,1736873464385,-1548.22,0.00012081,2]
[348923132,1736873464395,-9130.03,0.00012081,2]
[348923133,1736873464405,-775.0,0.00012155,2]
[348923134,1736873464416,-554.27,0.00012155,2]
[348923135,1736873464427,-1298.27,0.00012155,2]
[348923136,1736873464438,-1067.04,0.00012155,2]
[348923137,1736873464449,-2046.78,0.00012155,2]
[348923138,1736873464458,-1253.37,0.00012155,2]
[348923139,1736873464469,-831.64,0.00012155,2]
[348923140,1736873464479,-2049.18,0.00012155,2]
[348923141,1736873464489,-721.04,0.00012155,2]
[348923142,1736873464499,-638.19,0.00012155,2]
[348923143,1736873464510,-551.69,0.00012155,2]
[348923144,1736873464520,-526.93,0.00012155,2]
[348923145,1736873464531,-2294.02,0.00012155,2]
[348923146,1736873464541,-737.34,0.00012155,2]
[348923147,1736873464551,-931.12,0.00012155,2]
[348923148,1736873464561,-1061.62,0.00012155,2]
[348923149,1736873464572,-500.0,0.00012155,2]
[348923150,1736873464582,-682.17,0.00012156,2]
[348923151,1736873464591,-458.26,0.00012156,2]
[348923152,1736873464601,-500.0,0.00012156,2]
[348923153,1736873464611,-534.01,0.00012156,2]
[348923154,1736873464621,-500.0,0.00012156,2]
[348923155,1736873464633,-500.0,0.00012156,2]
[348923156,1736873464642,-167.92329647,0.00012156,2]
[348923157,1736873464652,-500.0,0.00012156,2]
[348923158,1736873464663,-500.0,0.00012156,2]
[348923159,1736873464673,-500.0,0.00012156,2]
[348923160,1736873464683,-500.0,0.00012156,2]
[348923161,1736873464694,-500.0,0.00012156,2]
[348923162,1736873464707,-500.0,0.00012156,2]
[348923163,1736873464717,-577.79,0.00012156,2]
[348923164,1736873464727,-500.0,0.00012156,2]
[348923165,1736873464737,-500.0,0.00012156,2]
[348923166,1736873464748,-532.22,0.00012156,2]
[348923167,1736873464758,-500.0,0.00012156,2]
[348923168,1736873464768,-500.0,0.00012156,2]
[348923169,1736873464779,-500.0,0.00012156,2]
[348923170,1736873464790,-500.0,0.00012156,2]
[348923171,1736873464800,-548.45,0.00012156,2]
[348923172,1736873464810,-500.0,0.00012156,2]
[348923173,1736873464820,-500.0,0.00012156,2]
[348923174,1736873464830,-516.55,0.00012156,2]
[348923175,1736873464840,-500.0,0.00012156,2]
[348923176,1736873464850,-500.0,0.00012156,2]
[348923177,1736873464860,-500.0,0.00012156,2]
[348923178,1736873464870,-500.0,0.00012156,2]
[348923179,1736873464880,-544.55,0.00012156,2]
[348923180,1736873464890,-601.16,0.00012156,2]
[348923181,1736873464900,-587.16,0.00012156,2]
[348923182,1736873464910,-500.0,0.00012156,2]
[348923183,1736873464920,-500.0,0.00012156,2]
[348923184,1736873464931,-500.0,0.00012156,2]
[348923185,1736873464941,-607.27,0.00012156,2]
[348923186,1736873464951,-500.0,0.00012156,2]
[348923187,1736873464961,-500.0,0.00012156,2]
[348923188,1736873464971,-597.63,0.00012156,2]
[348923189,1736873464980,-500.0,0.00012156,2]
[348923190,1736873464991,-500.0,0.00012156,2]
[348923191,1736873465001,-523.21,0.00012156,2]
[348923192,1736873465010,-500.0,0.00012156,2]
[348923193,1736873465022,-500.0,0.00012156,2]
[348923194,1736873465032,-500.0,0.00012156,2]
[348923195,1736873465042,-500.0,0.00012156,2]
[348923196,1736873465052,-500.0,0.00012156,2]
[348923197,1736873465062,-500.0,0.00012156,2]
[348923198,1736873465071,-500.0,0.00012156,2]
[348923199,1736873465081,-500.0,0.00012156,2]
[348923200,1736873465091,-500.0,0.00012156,2]
[348923201,1736873465101,-500.0,0.00012156,2]
[348923202,1736873465111,-500.0,0.00012156,2]
[348923203,1736873465121,-500.0,0.00012156,2]
[348923204,1736873465131,-1448.05,0.00012156,2]
[348923205,1736873465141,-500.0,0.00012156,2]
[348923206,1736873465151,-4489.17,0.00012156,2]
[348923207,1736873465161,-500.0,0.00012156,2]
[348923208,1736873465171,-930.31,0.00012156,2]
[348923209,1736873465181,-520.31,0.00012156,2]
[348923210,1736873465191,-500.0,0.00012156,2]
[348923211,1736873465201,-1622.01,0.00012156,2]
[348923212,1736873465211,-503.83,0.00012156,2]
[348923213,1736873465221,-532.34,0.00012156,2]
[348923214,1736873465231,-1251.7,0.00012156,2]
[348923215,1736873465242,-1286.21,0.00012156,2]
[348923216,1736873465252,-500.0,0.00012156,2]
[348923217,1736873465261,-500.0,0.00012156,2]
[348923218,1736873465271,-1400.82,0.00012156,2]
[348923219,1736873465281,-686.53,0.00012156,2]
[348923220,1736873465290,-500.0,0.00012156,2]
[348923221,1736873465300,-500.0,0.00012156,2]
[348923222,1736873465310,-882.72,0.00012156,2]
[348923223,1736873465319,-2270.99,0.00012156,2]
[348923224,1736873465329,-600.97,0.00012156,2]
[348923225,1736873465339,-999.28,0.00012156,2]
[348923226,1736873465348,-720.98,0.00012156,2]
[348923227,1736873465358,-500.0,0.00012156,2]
[348923228,1736873465367,-500.0,0.00012156,2]
[348923229,1736873465377,-500.0,0.00012156,2]
[348923230,1736873465387,-500.0,0.00012156,2]
[348923231,1736873465397,-500.0,0.00012156,2]
[348923232,1736873465406,-500.0,0.00012156,2]
[348923233,1736873465416,-840.54,0.00012156,2]
[348923234,1736873465425,-500.0,0.00012156,2]
[348923235,1736873465435,-500.0,0.00012156,2]
[348923236,1736873465444,-1127.29,0.00012156,2]
[348923237,1736873465453,-525.447495,0.00012156,2]
[348923238,1736873465463,-489.515402,0.00012156,2]
[348923239,1736873465472,-845.26,0.00012156,2]
[348923240,1736873465482,-2316.4,0.00012156,2]
[348923241,1736873465492,-211.956054,0.00012157,2]
[348923242,1736873465501,-1121.41,0.00012157,2]
[348923243,1736873465510,-759.75,0.00012157,2]
[348923244,1736873465520,-1262.08,0.00012157,2]
[348923245,1736873465529,-896.79,0.00012157,2]
[348923246,1736873465538,-2286.33,0.00012157,2]
[348923247,1736873465547,-1099.72,0.00012157,2]
[348923248,1736873465556,-500.0,0.00012157,2]
[348923249,1736873465566,-2044.8,0.00012157,2]
[348923250,1736873465575,-777.29,0.00012157,2]
[348923251,1736873465585,-797.41,0.00012157,2]
[348923252,1736873465594,-2913.28,0.00012157,2]
[348923253,1736873465604,-603.47,0.00012157,2]
[348923254,1736873465614,-3734.94,0.00012157,2]
[348923255,1736873465623,-1162.12,0.00012157,2]
[348923256,1736873465634,-500.0,0.00012157,2]
[348923257,1736873465644,-1874.38,0.00012157,2]
[348923258,1736873465653,-1069.78,0.00012157,2]
[348923259,1736873465662,-700.1,0.00012157,2]
[348923260,1736873465671,-644.96,0.00012157,2]
[348923261,1736873465680,-1068.25,0.00012158,2]
[348923262,1736873465689,-500.0,0.00012158,2]
[348923263,1736873465700,-2874.36,0.00012158,2]
[348923264,1736873465711,-500.0,0.00012158,2]
[348923265,1736873465722,-717.03,0.00012158,2]
[348923266,1736873465732,-864.55,0.00012158,2]
[348923267,1736873465742,-1140.82,0.00012158,2]
[348923268,1736873465753,-983.39,0.00012158,2]
[348923269,1736873465763,-574.35,0.00012165,2]
[348923270,1736873465773,-500.0,0.00012166,2]
[348923271,1736873465783,-786.31,0.00012166,2]
[348923272,1736873465792,-221.81,0.00012166,2]
[348923273,1736873465802,-7433.76,0.00012166,2]
[348923274,1736873465811,-896.11,0.00012166,2]
[348923275,1736873465821,-1140.47,0.00012166,2]
[348923276,1736873465830,-1229.69,0.00012166,2]
[348923277,1736873465839,-832.87,0.00012166,2]
[348923278,1736873465849,-2011.66,0.00012166,2]
[348923279,1736873465859,-1370.26,0.00012166,2]
[348923280,1736873465869,-2128.17,0.00012166,2]
[348923281,1736873465879,-2417.47,0.00012166,2]
[348923282,1736873465889,-1036.22,0.00012166,2]
[348923283,1736873465899,-3099.65,0.00012166,2]
[348923284,1736873465908,-608.09,0.00012166,2]
[348923285,1736873465918,-757.14,0.00012166,2]
[348923286,1736873465927,-170.45123195,0.0001219,2]
[348923287,1736873465938,-170.45123195,0.0001219,2]
[348923288,1736873465947,-170.45123195,0.0001219,2]
[348923289,1736873465956,-170.45123195,0.0001219,2]
[348923290,1736873465965,-170.45123195,0.0001219,2]
[348923291,1736873465975,-170.45123195,0.0001219,2]
[348923292,1736873465984,-170.45123195,0.0001219,2]
[348923293,1736873465994,-170.45123195,0.0001219,2]
[348923294,1736873466003,-170.45123195,0.0001219,2]
[348923295,1736873466014,-170.45123195,0.0001219,2]
[348923296,1736873466025,-170.45123195,0.0001219,2]
[348923297,1736873466035,-170.45123195,0.0001219,2]
[348923298,1736873466045,-170.45123195,0.0001219,2]
[348923299,1736873466054,-170.45123195,0.0001219,2]
[348923300,1736873466064,-170.45123195,0.0001219,2]
[348923301,1736873466073,-170.45123195,0.0001219,2]
[348923302,1736873466082,-170.45123195,0.0001219,2]
[348923303,1736873466091,-170.45123195,0.0001219,2]
[348923304,1736873466101,-170.45123195,0.0001219,2]
[348923305,1736873466111,-170.45,0.0001219,2]
[348923306,1736873466120,-820.42192635,0.0001219,2]
[348923307,1736873466130,-820.42192635,0.0001219,2]
[348923308,1736873466139,-820.42192635,0.0001219,2]
[348923309,1736873466149,-820.42192635,0.0001219,2]
[348923310,1736873466158,-820.42192635,0.0001219,2]
[348923311,1736873466168,-820.42192635,0.0001219,2]
[348923312,1736873466177,-820.42192635,0.0001219,2]
[348923313,1736873466187,-820.42192635,0.0001219,2]
[348923314,1736873466197,-820.42192635,0.0001219,2]
[348923315,1736873466206,-820.42192635,0.0001219,2]
[348923316,1736873466216,-820.42192635,0.0001219,2]
[348923317,1736873466225,-820.42192635,0.0001219,2]
[348923318,1736873466235,-820.42192635,0.0001219,2]
[348923319,1736873466245,-820.42192635,0.0001219,2]
[348923320,1736873466254,-820.42192635,0.0001219,2]
[348923321,1736873466264,-820.42192635,0.0001219,2]
[348923322,1736873466273,-820.42192635,0.0001219,2]
[348923323,1736873466282,-820.42192635,0.0001219,2]
[348923324,1736873466293,-820.42192635,0.0001219,2]
[348923325,1736873466303,-820.42,0.0001219,2]
[348923326,1736873466312,-2000.0,0.000122,2]
[348923327,1736873466321,-500.0,0.00012209,2]
[348923328,1736873466330,-151.0,0.00012329,2]
[348923329,1736873466340,-201.491721,0.00012329,2]
[348923330,1736873466349,-280.0,0.00012329,2]
[348923331,1736873466359,-280.0,0.00012329,2]
[348923332,1736873466368,-151.0,0.00012329,2]
[348923333,1736873466377,-369.647068,0.00012329,2]
[348923334,1736873466387,-369.647068,0.00012329,2]
[348923335,1736873466396,-181.76,0.00012329,2]
[348923336,1736873466405,-320.660814,0.00012329,2]
[348923337,1736873466416,-320.660814,0.00012329,2]
[348923338,1736873466426,-151.0,0.00012329,2]
[348923339,1736873466436,-294.574814,0.00012329,2]
[348923340,1736873466446,-294.574814,0.00012329,2]
[348923341,1736873466455,-151.0,0.00012329,2]
[348923342,1736873466465,-2796.186142,0.00012329,2]
[348923343,1736873466475,-2796.186142,0.00012329,2]
[348923344,1736873466484,-3860.227707,0.00012329,2]
[348923345,1736873466494,-151.0,0.00012329,2]
[348923346,1736873466504,-151.0,0.00012329,2]
[348923347,1736873466515,-151.0,0.00012329,2]
[348923348,1736873466525,-1023.854078,0.00012329,2]
[348923349,1736873466534,-1023.854078,0.00012329,2]
[348923350,1736873466543,-708.784725,0.00012329,2]
[348923351,1736873466552,-708.784725,0.00012329,2]
[348923352,1736873466561,-10000.0,0.00012329,2]
[348923353,1736873466726,-10000.0,0.00012329,2]
[348923354,1736873466736,-151.0,0.00012329,2]
[348923355,1736873466747,-10000.0,0.00012329,2]
[348923356,1736873466757,-10000.0,0.00012329,2]
[348923357,1736873466767,-461.501992,0.00012329,2]
[348923358,1736873466775,-461.501992,0.00012329,2]
[348923359,1736873466785,-605.628072,0.00012329,2]
[348923360,1736873466795,-335.464867,0.00012329,2]
[348923361,1736873466803,-605.628072,0.00012329,2]
[348923362,1736873466813,-335.464867,0.00012329,2]
[348923363,1736873466823,-151.0,0.00012329,2]
[348923364,1736873466833,-151.0,0.00012329,2]
[348923365,1736873466843,-151.0,0.00012329,2]
[348923366,1736873466852,-193.881747,0.00012329,2]
[348923367,1736873466861,-819.474383,0.00012329,2]
[348923368,1736873466871,-235.64,0.00012329,2]
[348923369,1736873466880,-193.881747,0.00012329,2]
[348923370,1736873466890,-819.474383,0.00012329,2]
[348923371,1736873466899,-151.0,0.00012329,2]
[348923372,1736873466909,-151.0,0.00012329,2]
[348923373,1736873466920,-151.0,0.00012329,2]
[348923374,1736873466930,-151.0,0.00012329,2]
[348923375,1736873466940,-151.0,0.00012329,2]
[348923376,1736873466949,-555.801489,0.00012329,2]
[348923377,1736873466958,-555.801489,0.00012329,2]
[348923378,1736873466967,-151.0,0.00012329,2]
[348923379,1736873466977,-151.0,0.00012329,2]
[348923380,1736873466986,-2576.98842426,0.00012329,2]
[348923381,1736873466995,-1000.0,0.00012338,2]
[348923382,1736873467004,-244.38,0.00012341,2]
[348923383,1736873467014,-500.0,0.00012354,2]
[348923384,1736873467026,-1069.16,0.00012355,2]
[348923385,1736873467036,-500.0,0.00012355,2]
[348923386,1736873467046,-679.33,0.00012355,2]
[348923387,1736873467056,-500.0,0.00012355,2]
[348923388,1736873467065,-597.12,0.00012355,2]
[348923389,1736873467075,-926.54,0.00012355,2]
[348923390,1736873467084,-500.0,0.00012355,2]
[348923391,1736873467093,-970.9,0.00012355,2]
[348923392,1736873467102,-717.4,0.00012355,2]
[348923393,1736873467112,-1548.22,0.00012355,2]
[348923394,1736873467121,-9130.03,0.00012355,2]
[348923395,1736873467131,-1017.88764744,0.00012383,2]
[348923396,1736873467141,-775.0,0.00012429,2]
[348923397,1736873467151,-554.27,0.00012429,2]
[348923398,1736873467161,-1298.27,0.00012429,2]
[348923399,1736873467170,-1067.04,0.00012429,2]
[348923400,1736873467179,-2046.78,0.00012429,2]
[348923401,1736873467189,-1253.37,0.00012429,2]
[348923402,1736873467198,-831.64,0.00012429,2]
[348923403,1736873467208,-2049.18,0.00012429,2]
[348923404,1736873467217,-721.04,0.00012429,2]
[348923405,1736873467227,-638.19,0.00012429,2]
[348923406,1736873467236,-551.69,0.00012429,2]
[348923407,1736873467246,-526.93,0.00012429,2]
[348923408,1736873467256,-2294.02,0.00012429,2]
[348923409,1736873467265,-737.34,0.00012429,2]
[348923410,1736873467274,-931.12,0.00012429,2]
[348923411,1736873467283,-500.0,0.00012429,2]
[348923412,1736873467292,-1061.62,0.00012429,2]
[348923413,1736873467301,-682.17,0.0001243,2]
[348923414,1736873467310,-500.0,0.0001243,2]
[348923415,1736873467319,-534.01,0.0001243,2]
[348923416,1736873467329,-500.0,0.0001243,2]
[348923417,1736873467338,-500.0,0.0001243,2]
[348923418,1736873467347,-500.0,0.0001243,2]
[348923419,1736873467357,-158.80797784,0.0001243,2]
[348923420,1736873467366,-500.0,0.0001243,2]
[348923421,1736873467375,-500.0,0.0001243,2]
[348923422,1736873467387,-500.0,0.0001243,2]
[348923423,1736873467396,-500.0,0.0001243,2]
[348923424,1736873467406,-577.79,0.0001243,2]
[348923425,1736873467414,-405.55648543,0.0001243,2]
[348923426,1736873467423,-500.0,0.0001243,2]
[348923427,1736873467432,-532.22,0.0001243,2]
[348923428,1736873467442,-500.0,0.0001243,2]
[348923429,1736873467452,-500.0,0.0001243,2]
[348923430,1736873467462,-500.0,0.0001243,2]
[348923431,1736873467471,-500.0,0.0001243,2]
[348923432,1736873467481,-548.45,0.0001243,2]
[348923433,1736873467491,-500.0,0.0001243,2]
[348923434,1736873467500,-500.0,0.0001243,2]
[348923435,1736873467511,-516.55,0.0001243,2]
[348923436,1736873467520,-500.0,0.0001243,2]
[348923437,1736873467531,-500.0,0.0001243,2]